Workbook

Sheet 工作表1
A1: 自增id | B1: 段位 | C1: 等级 | D1: 星星数 | E1: 最小经验 | F1: 最大经验 | G1: 是否保级
A2: auto_id | B2: grade_id | C2: level | D2: star | E2: min_exp | F2: max_exp | G2: unrelegation
A3: 1 | B3: 1 | C3: 3 | D3: 1 | E3: 0 | F3: =SUM(E3+9) -> 9 | G3: 1
A4: 2 | B4: 1 | C4: 3 | D4: 2 | E4: =SUM(F3+1) -> 10 | F4: =SUM(E4+9) -> 19 | G4: 0
A5: 3 | B5: 1 | C5: 3 | D5: 3 | E5: =SUM(F4+1) -> 20 | F5: =SUM(E5+9) -> 29 | G5: 0
A6: 4 | B6: 1 | C6: 2 | D6: 0 | E6: 20 | F6: 29 | G6: 0
A7: 5 | B7: 1 | C7: 2 | D7: 1 | E7: =SUM(F5+1) -> 30 | F7: =SUM(E7+9) -> 39 | G7: 1
A8: 6 | B8: 1 | C8: 2 | D8: 2 | E8: =SUM(F7+1) -> 40 | F8: 49 | G8: 0
A9: 7 | B9: 1 | C9: 2 | D9: 3 | E9: 50 | F9: 59 | G9: 0
A10: 8 | B10: 1 | C10: 1 | D10: 0 | E10: 50 | F10: 59 | G10: 0
A11: 9 | B11: 1 | C11: 1 | D11: 1 | E11: =SUM(F9+1) -> 60 | F11: 69 | G11: 1
A12: 10 | B12: 1 | C12: 1 | D12: 2 | E12: 70 | F12: 79 | G12: 0
A13: 11 | B13: 1 | C13: 1 | D13: 3 | E13: 80 | F13: 89 | G13: 0
A14: 12 | B14: 2 | C14: 3 | D14: 0 | E14: 80 | F14: 89 | G14: 0
A15: 13 | B15: 2 | C15: 3 | D15: 1 | E15: =SUM(F13+1) -> 90 | F15: =SUM(E15+19) -> 109 | G15: 1
A16: 14 | B16: 2 | C16: 3 | D16: 2 | E16: =SUM(F15+1) -> 110 | F16: =SUM(E16+19) -> 129 | G16: 0
A17: 15 | B17: 2 | C17: 3 | D17: 3 | E17: 130 | F17: 149 | G17: 0
A18: 16 | B18: 2 | C18: 2 | D18: 0 | E18: 130 | F18: 149 | G18: 0
A19: 17 | B19: 2 | C19: 2 | D19: 1 | E19: =SUM(F17+1) -> 150 | F19: =SUM(E19+19) -> 169 | G19: 1
A20: 18 | B20: 2 | C20: 2 | D20: 2 | E20: 170 | F20: 189 | G20: 0
A21: 19 | B21: 2 | C21: 2 | D21: 3 | E21: 190 | F21: 209 | G21: 0
A22: 20 | B22: 2 | C22: 1 | D22: 0 | E22: 190 | F22: 209 | G22: 0
A23: 21 | B23: 2 | C23: 1 | D23: 1 | E23: =SUM(F21+1) -> 210 | F23: =SUM(E23+19) -> 229 | G23: 1
A24: 22 | B24: 2 | C24: 1 | D24: 2 | E24: 230 | F24: 249 | G24: 0
A25: 23 | B25: 2 | C25: 1 | D25: 3 | E25: 250 | F25: 269 | G25: 0
A26: 24 | B26: 3 | C26: 5 | D26: 0 | E26: 250 | F26: 269 | G26: 0
A27: 25 | B27: 3 | C27: 5 | D27: 1 | E27: =SUM(F25+1) -> 270 | F27: =SUM(E27+29) -> 299 | G27: 1
A28: 26 | B28: 3 | C28: 5 | D28: 2 | E28: 300 | F28: =SUM(E28+29) -> 329 | G28: 0
A29: 27 | B29: 3 | C29: 5 | D29: 3 | E29: 330 | F29: 359 | G29: 0
A30: 28 | B30: 3 | C30: 5 | D30: 4 | E30: 360 | F30: 389 | G30: 0
A31: 29 | B31: 3 | C31: 5 | D31: 5 | E31: 390 | F31: 419 | G31: 0
A32: 30 | B32: 3 | C32: 4 | D32: 0 | E32: 390 | F32: 419 | G32: 0
A33: 31 | B33: 3 | C33: 4 | D33: 1 | E33: =SUM(F31+1) -> 420 | F33: =SUM(E33+29) -> 449 | G33: 1
A34: 32 | B34: 3 | C34: 4 | D34: 2 | E34: 450 | F34: 479 | G34: 0
A35: 33 | B35: 3 | C35: 4 | D35: 3 | E35: 480 | F35: 509 | G35: 0
A36: 34 | B36: 3 | C36: 4 | D36: 4 | E36: 510 | F36: 539 | G36: 0
A37: 35 | B37: 3 | C37: 4 | D37: 5 | E37: 540 | F37: 569 | G37: 0
A38: 36 | B38: 3 | C38: 3 | D38: 0 | E38: 540 | F38: 569 | G38: 0
A39: 37 | B39: 3 | C39: 3 | D39: 1 | E39: =SUM(F37+1) -> 570 | F39: =SUM(E39+29) -> 599 | G39: 1
A40: 38 | B40: 3 | C40: 3 | D40: 2 | E40: 600 | F40: 629 | G40: 0
A41: 39 | B41: 3 | C41: 3 | D41: 3 | E41: 630 | F41: 659 | G41: 0
A42: 40 | B42: 3 | C42: 3 | D42: 4 | E42: 660 | F42: 689 | G42: 0
A43: 41 | B43: 3 | C43: 3 | D43: 5 | E43: 690 | F43: 719 | G43: 0
A44: 42 | B44: 3 | C44: 2 | D44: 0 | E44: 690 | F44: 719 | G44: 0
A45: 43 | B45: 3 | C45: 2 | D45: 1 | E45: =SUM(F43+1) -> 720 | F45: =SUM(E45+29) -> 749 | G45: 1
A46: 44 | B46: 3 | C46: 2 | D46: 2 | E46: 750 | F46: 779 | G46: 0
A47: 45 | B47: 3 | C47: 2 | D47: 3 | E47: 780 | F47: 809 | G47: 0
A48: 46 | B48: 3 | C48: 2 | D48: 4 | E48: 810 | F48: 839 | G48: 0
A49: 47 | B49: 3 | C49: 2 | D49: 5 | E49: 840 | F49: 869 | G49: 0
A50: 48 | B50: 3 | C50: 1 | D50: 0 | E50: 840 | F50: 869 | G50: 0
A51: 49 | B51: 3 | C51: 1 | D51: 1 | E51: =SUM(F49+1) -> 870 | F51: =SUM(E51+29) -> 899 | G51: 1
A52: 50 | B52: 3 | C52: 1 | D52: 2 | E52: 900 | F52: 929 | G52: 0
A53: 51 | B53: 3 | C53: 1 | D53: 3 | E53: 930 | F53: 959 | G53: 0
A54: 52 | B54: 3 | C54: 1 | D54: 4 | E54: 960 | F54: 989 | G54: 0
A55: 53 | B55: 3 | C55: 1 | D55: 5 | E55: 990 | F55: 1019 | G55: 0
A56: 54 | B56: 4 | C56: 5 | D56: 0 | E56: 990 | F56: 1019 | G56: 0
A57: 55 | B57: 4 | C57: 5 | D57: 1 | E57: =SUM(F55+1) -> 1020 | F57: =SUM(E57+49) -> 1069 | G57: 1
A58: 56 | B58: 4 | C58: 5 | D58: 2 | E58: 1070 | F58: =SUM(E58+49) -> 1119 | G58: 0
A59: 57 | B59: 4 | C59: 5 | D59: 3 | E59: 1120 | F59: 1169 | G59: 0
A60: 58 | B60: 4 | C60: 5 | D60: 4 | E60: 1170 | F60: 1219 | G60: 0
A61: 59 | B61: 4 | C61: 5 | D61: 5 | E61: 1220 | F61: 1269 | G61: 0
A62: 60 | B62: 4 | C62: 4 | D62: 0 | E62: 1220 | F62: 1269 | G62: 0
A63: 61 | B63: 4 | C63: 4 | D63: 1 | E63: =SUM(F61+1) -> 1270 | F63: =SUM(E63+49) -> 1319 | G63: 1
A64: 62 | B64: 4 | C64: 4 | D64: 2 | E64: 1320 | F64: 1369 | G64: 0
A65: 63 | B65: 4 | C65: 4 | D65: 3 | E65: 1370 | F65: 1419 | G65: 0
A66: 64 | B66: 4 | C66: 4 | D66: 4 | E66: 1420 | F66: 1469 | G66: 0
A67: 65 | B67: 4 | C67: 4 | D67: 5 | E67: 1470 | F67: 1519 | G67: 0
A68: 66 | B68: 4 | C68: 3 | D68: 0 | E68: 1470 | F68: 1519 | G68: 0
A69: 67 | B69: 4 | C69: 3 | D69: 1 | E69: =SUM(F67+1) -> 1520 | F69: =SUM(E69+49) -> 1569 | G69: 1
A70: 68 | B70: 4 | C70: 3 | D70: 2 | E70: 1570 | F70: 1619 | G70: 0
A71: 69 | B71: 4 | C71: 3 | D71: 3 | E71: 1620 | F71: 1669 | G71: 0
A72: 70 | B72: 4 | C72: 3 | D72: 4 | E72: 1670 | F72: 1719 | G72: 0
A73: 71 | B73: 4 | C73: 3 | D73: 5 | E73: 1720 | F73: 1769 | G73: 0
A74: 72 | B74: 4 | C74: 2 | D74: 0 | E74: 1720 | F74: 1769 | G74: 0
A75: 73 | B75: 4 | C75: 2 | D75: 1 | E75: =SUM(F73+1) -> 1770 | F75: =SUM(E75+49) -> 1819 | G75: 1
A76: 74 | B76: 4 | C76: 2 | D76: 2 | E76: 1820 | F76: 1869 | G76: 0
A77: 75 | B77: 4 | C77: 2 | D77: 3 | E77: 1870 | F77: 1919 | G77: 0
A78: 76 | B78: 4 | C78: 2 | D78: 4 | E78: 1920 | F78: 1969 | G78: 0
A79: 77 | B79: 4 | C79: 2 | D79: 5 | E79: =SUM(F78+1) -> 1970 | F79: 2019 | G79: 0
A80: 78 | B80: 4 | C80: 1 | D80: 0 | E80: 1970 | F80: 2019 | G80: 0
A81: 79 | B81: 4 | C81: 1 | D81: 1 | E81: =SUM(F79+1) -> 2020 | F81: =SUM(E81+49) -> 2069 | G81: 1
A82: 80 | B82: 4 | C82: 1 | D82: 2 | E82: 2070 | F82: 2119 | G82: 0
A83: 81 | B83: 4 | C83: 1 | D83: 3 | E83: 2120 | F83: 2169 | G83: 0
A84: 82 | B84: 4 | C84: 1 | D84: 4 | E84: 2170 | F84: 2219 | G84: 0
A85: 83 | B85: 4 | C85: 1 | D85: 5 | E85: 2220 | F85: 2269 | G85: 0
A86: 84 | B86: 5 | C86: 5 | D86: 0 | E86: 2220 | F86: 2269 | G86: 0
A87: 85 | B87: 5 | C87: 5 | D87: 1 | E87: =SUM(F85+1) -> 2270 | F87: =SUM(E87+99) -> 2369 | G87: 1
A88: 86 | B88: 5 | C88: 5 | D88: 2 | E88: 2370 | F88: =SUM(E88+99) -> 2469 | G88: 0
A89: 87 | B89: 5 | C89: 5 | D89: 3 | E89: 2470 | F89: 2569 | G89: 0
A90: 88 | B90: 5 | C90: 5 | D90: 4 | E90: 2570 | F90: 2669 | G90: 0
A91: 89 | B91: 5 | C91: 5 | D91: 5 | E91: 2670 | F91: 2769 | G91: 0
A92: 90 | B92: 5 | C92: 4 | D92: 0 | E92: 2670 | F92: 2769 | G92: 0
A93: 91 | B93: 5 | C93: 4 | D93: 1 | E93: =SUM(F91+1) -> 2770 | F93: =SUM(E93+99) -> 2869 | G93: 1
A94: 92 | B94: 5 | C94: 4 | D94: 2 | E94: 2870 | F94: 2969 | G94: 0
A95: 93 | B95: 5 | C95: 4 | D95: 3 | E95: 2970 | F95: 3069 | G95: 0
A96: 94 | B96: 5 | C96: 4 | D96: 4 | E96: 3070 | F96: 3169 | G96: 0
A97: 95 | B97: 5 | C97: 4 | D97: 5 | E97: 3170 | F97: 3269 | G97: 0
A98: 96 | B98: 5 | C98: 3 | D98: 0 | E98: 3170 | F98: 3269 | G98: 0
A99: 97 | B99: 5 | C99: 3 | D99: 1 | E99: =SUM(F97+1) -> 3270 | F99: =SUM(E99+99) -> 3369 | G99: 1
A100: 98 | B100: 5 | C100: 3 | D100: 2 | E100: 3370 | F100: 3469 | G100: 0
A101: 99 | B101: 5 | C101: 3 | D101: 3 | E101: 3470 | F101: 3569 | G101: 0
A102: 100 | B102: 5 | C102: 3 | D102: 4 | E102: 3570 | F102: 3669 | G102: 0
A103: 101 | B103: 5 | C103: 3 | D103: 5 | E103: 3670 | F103: 3769 | G103: 0
A104: 102 | B104: 5 | C104: 2 | D104: 0 | E104: 3670 | F104: 3769 | G104: 0
A105: 103 | B105: 5 | C105: 2 | D105: 1 | E105: =SUM(F103+1) -> 3770 | F105: =SUM(E105+99) -> 3869 | G105: 1
A106: 104 | B106: 5 | C106: 2 | D106: 2 | E106: 3870 | F106: 3969 | G106: 0
A107: 105 | B107: 5 | C107: 2 | D107: 3 | E107: 3970 | F107: 4069 | G107: 0
A108: 106 | B108: 5 | C108: 2 | D108: 4 | E108: 4070 | F108: 4169 | G108: 0
A109: 107 | B109: 5 | C109: 2 | D109: 5 | E109: 4170 | F109: 4269 | G109: 0
A110: 108 | B110: 5 | C110: 1 | D110: 0 | E110: 4170 | F110: 4269 | G110: 0
A111: 109 | B111: 5 | C111: 1 | D111: 1 | E111: =SUM(F109+1) -> 4270 | F111: =SUM(E111+99) -> 4369 | G111: 1
A112: 110 | B112: 5 | C112: 1 | D112: 2 | E112: 4370 | F112: 4469 | G112: 0
A113: 111 | B113: 5 | C113: 1 | D113: 3 | E113: 4470 | F113: 4569 | G113: 0
A114: 112 | B114: 5 | C114: 1 | D114: 4 | E114: 4570 | F114: 4669 | G114: 0
A115: 113 | B115: 5 | C115: 1 | D115: 5 | E115: 4670 | F115: 4769 | G115: 0
A116: 114 | B116: 6 | C116: 1 | D116: 0 | E116: 4670 | F116: 4769 | G116: 0
A117: 115 | B117: 6 | C117: 1 | D117: 1 | E117: =SUM(F115+1) -> 4770 | F117: =SUM(E117+149) -> 4919 | G117: 1
A118: 116 | B118: 6 | C118: 1 | D118: 2 | E118: 4920 | F118: =SUM(E118+149) -> 5069 | G118: 0
A119: 117 | B119: 6 | C119: 1 | D119: 3 | E119: 5070 | F119: 5219 | G119: 0
A120: 118 | B120: 6 | C120: 1 | D120: 4 | E120: 5220 | F120: 5369 | G120: 0
A121: 119 | B121: 6 | C121: 1 | D121: 5 | E121: 5370 | F121: 5519 | G121: 0
A122: 120 | B122: 6 | C122: 1 | D122: 6 | E122: 5520 | F122: 5669 | G122: 0
A123: 121 | B123: 6 | C123: 1 | D123: 7 | E123: 5670 | F123: 5819 | G123: 0
A124: 122 | B124: 6 | C124: 1 | D124: 8 | E124: 5820 | F124: 5969 | G124: 0
A125: 123 | B125: 6 | C125: 1 | D125: 9 | E125: 5970 | F125: 6119 | G125: 0
A126: 124 | B126: 6 | C126: 1 | D126: 10 | E126: 6120 | F126: 6269 | G126: 0
A127: 125 | B127: 6 | C127: 1 | D127: 11 | E127: 6270 | F127: 6419 | G127: 0
A128: 126 | B128: 6 | C128: 1 | D128: 12 | E128: 6420 | F128: 6569 | G128: 0
A129: 127 | B129: 6 | C129: 1 | D129: 13 | E129: 6570 | F129: 6719 | G129: 0
A130: 128 | B130: 6 | C130: 1 | D130: 14 | E130: 6720 | F130: 6869 | G130: 0
A131: 129 | B131: 6 | C131: 1 | D131: 15 | E131: 6870 | F131: 7019 | G131: 0
A132: 130 | B132: 6 | C132: 1 | D132: 16 | E132: 7020 | F132: 7169 | G132: 0
A133: 131 | B133: 6 | C133: 1 | D133: 17 | E133: 7170 | F133: 7319 | G133: 0
A134: 132 | B134: 6 | C134: 1 | D134: 18 | E134: 7320 | F134: 7469 | G134: 0
A135: 133 | B135: 6 | C135: 1 | D135: 19 | E135: 7470 | F135: 7619 | G135: 0
A136: 134 | B136: 6 | C136: 1 | D136: 20 | E136: 7620 | F136: 7769 | G136: 0
A137: 135 | B137: 6 | C137: 1 | D137: 21 | E137: 7770 | F137: 7919 | G137: 0
A138: 136 | B138: 6 | C138: 1 | D138: 22 | E138: 7920 | F138: 8069 | G138: 0
A139: 137 | B139: 6 | C139: 1 | D139: 23 | E139: 8070 | F139: 8219 | G139: 0
A140: 138 | B140: 6 | C140: 1 | D140: 24 | E140: 8220 | F140: 8369 | G140: 0
A141: 139 | B141: 6 | C141: 1 | D141: 25 | E141: 8370 | F141: 8519 | G141: 0
A142: 140 | B142: 6 | C142: 1 | D142: 26 | E142: 8520 | F142: 8669 | G142: 0
A143: 141 | B143: 6 | C143: 1 | D143: 27 | E143: 8670 | F143: 8819 | G143: 0
A144: 142 | B144: 6 | C144: 1 | D144: 28 | E144: =SUM(F143+1) -> 8820 | F144: 8969 | G144: 0
A145: 143 | B145: 6 | C145: 1 | D145: 29 | E145: 8970 | F145: 9119 | G145: 0
A146: 144 | B146: 6 | C146: 1 | D146: 30 | E146: 9120 | F146: 9269 | G146: 0
A147: 145 | B147: 6 | C147: 1 | D147: 31 | E147: 9270 | F147: 9419 | G147: 0
A148: 146 | B148: 6 | C148: 1 | D148: 32 | E148: 9420 | F148: 9569 | G148: 0
A149: 147 | B149: 6 | C149: 1 | D149: 33 | E149: 9570 | F149: 9719 | G149: 0
A150: 148 | B150: 6 | C150: 1 | D150: 34 | E150: 9720 | F150: 9869 | G150: 0
A151: 149 | B151: 6 | C151: 1 | D151: 35 | E151: 9870 | F151: 10019 | G151: 0
A152: 150 | B152: 6 | C152: 1 | D152: 36 | E152: 10020 | F152: 10169 | G152: 0
A153: 151 | B153: 6 | C153: 1 | D153: 37 | E153: 10170 | F153: 10319 | G153: 0
A154: 152 | B154: 6 | C154: 1 | D154: 38 | E154: 10320 | F154: 10469 | G154: 0
A155: 153 | B155: 6 | C155: 1 | D155: 39 | E155: 10470 | F155: 10619 | G155: 0
A156: 154 | B156: 6 | C156: 1 | D156: 40 | E156: 10620 | F156: 10769 | G156: 0
A157: 155 | B157: 6 | C157: 1 | D157: 41 | E157: 10770 | F157: 10919 | G157: 0
A158: 156 | B158: 6 | C158: 1 | D158: 42 | E158: 10920 | F158: 11069 | G158: 0
A159: 157 | B159: 6 | C159: 1 | D159: 43 | E159: 11070 | F159: 11219 | G159: 0
A160: 158 | B160: 6 | C160: 1 | D160: 44 | E160: 11220 | F160: 11369 | G160: 0
A161: 159 | B161: 6 | C161: 1 | D161: 45 | E161: 11370 | F161: 11519 | G161: 0
A162: 160 | B162: 6 | C162: 1 | D162: 46 | E162: 11520 | F162: 11669 | G162: 0
A163: 161 | B163: 6 | C163: 1 | D163: 47 | E163: 11670 | F163: 11819 | G163: 0
A164: 162 | B164: 6 | C164: 1 | D164: 48 | E164: 11820 | F164: 11969 | G164: 0
A165: 163 | B165: 6 | C165: 1 | D165: 49 | E165: 11970 | F165: 12119 | G165: 0
A166: 164 | B166: 6 | C166: 1 | D166: 50 | E166: 12120 | F166: 12269 | G166: 0
